Cogmind - Beta 10.2 @@@ ROGUE MODE // 2020.11.04 @ 18:58:46 // Halloween2020/ForbiddenLore Player: Lynx Result: Destroyed by D-53 Grenadier with Mini Grenade Launcher Performance ------------- Evolutions (0) 0 Regions Visited (4) 800 Robots Destroyed (10) 50 Value Destroyed (218) 218 Prototype IDs (0) 0 Alien Tech Used (0) 0 Bonus (0) 0 TOTAL SCORE: 1068 Bonus ------- None Cogmind --------- Core Integrity 0/250 Matter 298/300 Energy 123/125 System Corruption 0% Temperature Cool (0) Movement Rolling (100) Location -9/Mines Parts ------- > --- POWER (1) -------- Light Ion Engine > --- PROPULSION (2) --- Compact Wheel Compact Wheel > --- UTILITY (2) ------ Improved Heat Sink Medium Storage Unit > --- WEAPON (2) ------- Light Cannon > --- INVENTORY (8) ---- Light Ion Engine Light Ion Engine Reinforced Deuterium Engine Aluminum Leg Heat Sink Small Storage Unit Light Assault Rifle Peak State ------------ > --- POWER ------------ Light Ion Engine > --- PROPULSION ------- Compact Wheel Compact Wheel > --- UTILITY ---------- Improved Heat Sink Medium Storage Unit > --- WEAPON ----------- Particle Gun Assault Rifle > --- INVENTORY -------- Light Ion Engine Reinforced Deuterium Engine Aluminum Leg Heat Sink Small Storage Unit Light Assault Rifle Light Cannon [Rating: 11] Favorites ----------- Power Light Ion Engine Engine Light Ion Engine Propulsion Aluminum Leg Leg Aluminum Leg Wheel Compact Wheel Utility Medium Storage Unit Device Heat Sink Storage Medium Storage Unit Weapon Assault Rifle Energy Gun Medium Laser Ballistic Gun Assault Rifle Ballistic Cannon Light Cannon Build | -11 -10 -10 -10 -9 ------- Run | Scr Mat Min Exi Min Slots Evolved . | . . . . . Power . | . . . . . Propulsion . | . . . . . Utility . | . . . . . Weapon . | . . . . . Parts Attached 18 | 7 3 1 1 6 Power 5 | 2 . 1 1 1 Engine 5 | 2 . 1 1 1 Core . | . . . . . Reactor . | . . . . . Propulsion 4 | 2 . . . 2 Treads . | . . . . . Leg 2 | 2 . . . . Wheel 2 | . . . . 2 Hover . | . . . . . Flight . | . . . . . Utility 4 | 1 2 . . 1 Device 2 | . 1 . . 1 Storage 2 | 1 1 . . . Processor . | . . . . . Hackware . | . . . . . Protection . | . . . . . Artifact . | . . . . . Weapon 5 | 2 1 . . 2 Energy Gun 2 | . 1 . . 1 Energy Cannon . | . . . . . Ballistic Gun 2 | 2 . . . . Ballistic Cannon 1 | . . . . 1 Launcher . | . . . . . Special Weapon . | . . . . . Impact Weapon . | . . . . . Slashing Weapon . | . . . . . Piercing Weapon . | . . . . . Special Melee Weapon . | . . . . . Unidentified Prototypes . | . . . . . Parts Lost 4 | . . . . 4 Power . | . . . . . Propulsion 1 | . . . . 1 Utility . | . . . . . Weapon 3 | . . . . 3 Highest Loss Streak 2 | . . . . 2 Average Slot Usage (%) 97 | . 92 100 99 95 Engine 13 | . 14 14 13 14 Leg 24 | . 28 28 28 4 Wheel 2 | . . . . 21 Device 12 | . 6 14 14 14 Storage 14 | . 14 14 14 14 Energy Gun 11 | . 6 14 14 7 Ballistic Gun 15 | . 21 14 14 13 Naked Turns . | . . . . . Heaviest Build 18 | 13 18 18 16 17 Greatest Support 32 | 20 20 20 20 32 Greatest Overweight (x) . | . . . . . Average Overweight (x) . | . . . . . Largest Inventory Capacity 10 | 6 10 8 8 8 Average Capacity 7 | 5 7 8 8 8 Most Carried 8 | 4 8 8 8 8 Average Carried 7 | 2 6 8 7 7 Final Capacity 8 | 6 8 8 8 8 Final Carried 8 | 4 8 8 8 7 Class Distribution -------------------- 100% | Mutant Dominant Class ---------------- Mutant | -10/Materials Mutant | -10/Mines Mutant | -10/Exiles Mutant | -9/Mines Resources | -11 -10 -10 -10 -9 ----------- Run | Scr Mat Min Exi Min Matter Collected 469 | 210 92 44 . 123 Remotely . | . . . . . Salvage Created 307 | . 92 47 . 168 Parts 20 | . 6 5 . 9 Haulers Intercepted . | . . . . . Recyclers Shooed . | . . . . . Parts Field Recycled . | . . . . . Retrieved Matter . | . . . . . Parts Self-Destructed . | . . . . . Prevented . | . . . . . Kills | -11 -10 -10 -10 -9 ------- Run | Scr Mat Min Exi Min Combat Hostiles Destroyed 9 | . 2 3 . 4 Guns 8 | . 2 3 . 3 Cannons 1 | . . . . 1 Classes Destroyed 3 | . 1 1 . 1 Recycler 1 | . . . . 1 Swarmer 5 | . . 3 . 2 Grunt 4 | . 2 . . 2 Best Kill Streak 3 | . 2 3 . 3 Combat Bots Only 3 | . 2 3 . 2 Max Kills in Single Turn 2 | . 1 2 . 1 Gunslinging . | . . . . . Exploded . | . . . . . Melee . | . . . . . Uniques/NPCs Destroyed . | . . . . . Combat | -11 -10 -10 -10 -9 -------- Run | Scr Mat Min Exi Min Damage Taken 806 | . 112 12 . 682 Core 255 | . 12 . . 243 Absorbed by Shields . | . . . . . Core Remaining (%) 100 | 100 . . . . Volleys Fired 28 | . 5 2 . 21 Largest 2 | . 2 2 . 2 Hottest 85 | . 40 70 . 85 Shots Fired 54 | . 10 4 . 40 Gun 51 | . 10 4 . 37 Cannon 3 | . . . . 3 Launcher . | . . . . . Special . | . . . . . Kinetic 36 | . 10 2 . 24 Thermal 18 | . . 2 . 16 Explosive . | . . . . . Electromagnetic . | . . . . . Robot Hit Streak 7 | . 5 1 . 7 Robot Miss Streak 3 | . 1 3 . 2 Penetration Max . | . . . . . Secondary Targets 2 | . . . . 2 Max Gunslinging Chain 1 | . . . . 1 Shots Hit Robots 38 | . 8 1 . 29 Core Hits 17 | . 5 3 . 9 Critical Hits . | . . . . . Critical Kills . | . . . . . Critical Parts Destroyed . | . . . . . Melee Attacks . | . . . . . Impact . | . . . . . Slashing . | . . . . . Piercing . | . . . . . Sneak Attacks . | . . . . . Combat Hostiles . | . . . . . Follow-up Attacks . | . . . . . Damage Inflicted 523 | . 105 40 . 378 Guns 473 | . 105 40 . 328 Cannons 50 | . . . . 50 Explosions . | . . . . . Melee . | . . . . . Ramming . | . . . . . Kinetic 339 | . 105 14 . 220 Thermal 184 | . . 26 . 158 Explosive . | . . . . . Electromagnetic . | . . . . . Impact . | . . . . . Slashing . | . . . . . Piercing . | . . . . . Highest Corruption . | . . . . . Average Corruption . | . . . . . Corruption Purged . | . . . . . Overload Shots . | . . . . . Overflow Damage . | . . . . . Projectiles . | . . . . . Explosions . | . . . . . Melee . | . . . . . Knockbacks . | . . . . . Impact . | . . . . . Kinetic . | . . . . . Secondary . | . . . . . Self-Inflicted Damage . | . . . . . Shots . | . . . . . Rammed . | . . . . . Targets Rammed . | . . . . . Kicked . | . . . . . Crushed . | . . . . . Highest Temperature 10 | . 2 . . 10 Average Temperature 3 | . 2 . . 3 Received Heat Transfer 237 | . 60 . . 177 Siege Activations . | . . . . . Robots Corrupted . | . . . . . Combat Hostiles . | . . . . . Parts Fried . | . . . . . Impact Corruptions . | . . . . . Robots Melted . | . . . . . Combat Hostiles . | . . . . . Parts Melted 2 | . . . . 2 Heat Transferred 518 | . . 74 . 444 Parts Sabotaged . | . . . . . Parts Stolen . | . . . . . Parts Stripped . | . . . . . Power Chain Reactions . | . . . . . Missiles Intercepted . | . . . . . Alert | -11 -10 -10 -10 -9 ------- Run | Scr Mat Min Exi Min Peak Influence 100 | . 65 95 . 100 Initial 25 | . . 25 . . Average 51 | . 35 94 . 63 Maximum Alert Level . | . . . . . Low Security (%) 100 | 100 100 100 . 100 Level 1 . | . . . . . Level 2 . | . . . . . Level 3 . | . . . . . Level 4 . | . . . . . Level 5 . | . . . . . High Security . | . . . . . Max Security . | . . . . . Squads Dispatched . | . . . . . Investigation . | . . . . . Extermination . | . . . . . Reinforcement . | . . . . . Assault . | . . . . . Garrison . | . . . . . Intercept . | . . . . . Construction Impeded . | . . . . . Haulers Reinforced . | . . . . . Stealth | -11 -10 -10 -10 -9 --------- Run | Scr Mat Min Exi Min Distress Signals 2 | . 2 . . . Communications Jammed . | . . . . . Distress Signals . | . . . . . Times Spotted 17 | . 5 2 . 10 Peak Tracking Total 5 | . 5 2 . 5 Tactical Retreats 1 | . . . . 1 Traps | -11 -10 -10 -10 -9 ------- Run | Scr Mat Min Exi Min Traps Triggered . | . . . . . Indirectly . | . . . . . Trap Hack Attempts . | . . . . . Triggered . | . . . . . Disarmed . | . . . . . Reprogrammed . | . . . . . Reused . | . . . . . Traps Extracted . | . . . . . Installed . | . . . . . Triggered . | . . . . . Machines | -11 -10 -10 -10 -9 ---------- Run | Scr Mat Min Exi Min Machines Disabled . | . . . . . Max in Single Turn . | . . . . . Machines Sabotaged . | . . . . . Garrisons Compromised . | . . . . . Overloaded Fab Kills . | . . . . . Fab Network Shutdowns . | . . . . . Hacking | -11 -10 -10 -10 -9 --------- Run | Scr Mat Min Exi Min Machines Accessed 4 | . . . 4 . Terminals . | . . . . . Fabricators . | . . . . . Repair Stations . | . . . . . Recycling Units . | . . . . . Scanalyzers . | . . . . . Garrison Access . | . . . . . Total Hacks 27 | . . . 27 . Successful 27 | . . . 27 . Failed . | . . . . . Catastrophic . | . . . . . Database Lockouts . | . . . . . Manual . | . . . . . Terminals . | . . . . . Fabricators . | . . . . . Repair Stations . | . . . . . Recycling Units . | . . . . . Scanalyzers . | . . . . . Garrison Access . | . . . . . Terminal Hacks 27 | . . . 27 . Record 27 | . . . 27 . Fabricator Hacks . | . . . . . Repair Station Hacks . | . . . . . Recycling Unit Hacks . | . . . . . Scanalyzer . | . . . . . Garrison Access Hacks . | . . . . . Unauthorized Hacks . | . . . . . Terminals . | . . . . . Fabricators . | . . . . . Repair Stations . | . . . . . Recycling Units . | . . . . . Scanalyzers . | . . . . . Garrison Access . | . . . . . Data Cores Recovered . | . . . . . Used . | . . . . . Hacking Detections . | . . . . . Full Trace Events . | . . . . . Feedback Events . | . . . . . Feedback Blocked . | . . . . . Robot Schematics Acquired . | . . . . . Robots Built . | . . . . . Matter . | . . . . . Time . | . . . . . Total Robot Build Rating . | . . . . . Part Schematics Acquired . | . . . . . Parts Built . | . . . . . Matter . | . . . . . Time . | . . . . . Total Part Build Rating . | . . . . . Parts Repaired . | . . . . . Time . | . . . . . Parts Recycled . | . . . . . Recycled Matter . | . . . . . Retrieved Matter . | . . . . . Retrieved Components . | . . . . . Parts Scanalyzed . | . . . . . Part Schematics Acquired . | . . . . . Parts Damaged . | . . . . . Bothacking | -11 -10 -10 -10 -9 ------------ Run | Scr Mat Min Exi Min Used RIF Installer . | . . . . . Robots Hacked . | . . . . . Non-combat . | . . . . . Combat . | . . . . . Robot Hacks Applied . | . . . . . Relay Couplers Released . | . . . . . Robots Rewired . | . . . . . Allies Hacked . | . . . . . Hacks Repelled . | . . . . . Allies | -11 -10 -10 -10 -9 -------- Run | Scr Mat Min Exi Min Total Allies . | . . . . . Largest Group . | . . . . . Highest-Rated Group . | . . . . . Highest-Rated Ally . | . . . . . Total Orders . | . . . . . Ally Attacks . | . . . . . Total Damage . | . . . . . Kills . | . . . . . Allies Corrupted . | . . . . . Allies Melted . | . . . . . Intel | -11 -10 -10 -10 -9 ------- Run | Scr Mat Min Exi Min Robot Analysis Total . | . . . . . Derelict Logs Recovered . | . . . . . Drone Launches . | . . . . . Drone Recoveries . | . . . . . Exploration | -11 -10 -10 -10 -9 ------------- Run | Scr Mat Min Exi Min Turns Passed 1109 | 72 194 120 585 138 Spaces Moved 831 | 55 134 88 485 69 Core 9 | 9 . . . . Treads . | . . . . . Legs 753 | 46 134 88 485 . Wheels 69 | . . . . 69 Hover . | . . . . . Flight . | . . . . . Fastest Speed 50 | 50 120 120 120 100 Average Speed 117 | 108 120 120 120 100 Slowest Speed 120 | 120 120 120 120 100 Overloaded Moves . | . . . . . Propulsion Burnouts . | . . . . . Robots Hopped . | . . . . . Cave-ins Triggered 1 | . . . . 1 Exploration Rate (%) 30 | 4 33 16 88 10 Regions Visited 4 Branch Regions 3 Pre-discovered Areas 1 | . . . 1 . Known Exits Taken . | . . . . . Unknown Exits Taken 4 | 1 1 1 1 . Scrap Searched . | . . . . . Spaces Dug . | . . . . . Terrain Destroyed . | . . . . . Melee . | . . . . . Projectile . | . . . . . AOE . | . . . . . Terrain Rammed . | . . . . . Walls Destroyed . | . . . . . Machines Disabled . | . . . . . Actions | -11 -10 -10 -10 -9 --------- Run | Scr Mat Min Exi Min Total 906 | 64 157 98 488 99 Wait 17 | . 10 7 . . Move 826 | 54 133 87 484 68 Hop . | . . . . . Pick Up 8 | 3 4 . 1 . Fast Attach 12 | 6 2 1 1 2 Attach 5 | . 1 . . 4 Detach 4 | . 1 . . 3 Swap 1 | 1 . . . . Drop 4 | . 1 1 2 . Fire 28 | . 5 2 . 21 Melee . | . . . . . Ram . | . . . . . Kick . | . . . . . Crush . | . . . . . Escape Stasis 1 | . . . . 1 Rewire . | . . . . . Trap . | . . . . . Miscellaneous . | . . . . . Route ------- -11/Scrapyard -10/Materials -10/Mines -10/Exiles -9/Mines History --------- Turn | Location | Event 19 | -11/Scrapyard | Discovered new exit (range 16) 73 | -11/Scrapyard | Entered Materials 249 | -10/Materials | Discovered new exit (range 14) 267 | -10/Materials | Entered Mines 300 | -10/Mines | Build established: Mutant 381 | -10/Mines | Deemed a non-threat by the Exiles lab entrance 382 | -10/Mines | Discovered new exit (range 5) 387 | -10/Mines | Entered Exiles 427 | -10/Exiles | Met 8R-AWN 452 | -10/Exiles | Met EX-HEX 494 | -10/Exiles | Met EX-BIN 660 | -10/Exiles | Met EX-DEC 738 | -10/Exiles | Learned location of Zion (-6) 787 | -10/Exiles | Visited The Gauntlet 961 | -10/Exiles | Discovered new exit (range 10) 972 | -10/Exiles | Entered Mines 1093 | -9/Mines | Assembled infested the area 1099 | -9/Mines | Core integrity fell below 50% 1108 | -9/Mines | Crushed by falling debris 1109 | -9/Mines | Core integrity fell below 20% 1110 | -9/Mines | Destroyed by D-53 Grenadier with Mini Grenade Launcher Last Messages --------------- 01049_ R-06 Scavenger collects Com. Wheel. 01050_ Acquired 32 matter. 01052_ R-06 Scavenger collects Lgt. Assault Rifle. 01055_ Acquired Lgt. Ion Engine. 01056_ Acquired 9 matter. 01058_ Acquired 1 matter. 01084_ K-01 Serf collects debris. 01085_ R-06 Scavenger collects Lgt. Assault Rifle. 01087_ K-01 Serf collects debris. 01090_ R-06 Scavenger collects Lgt. Ion Engine. 01092_ K-01 Serf collects debris. 01093_ ALERT: Infestation in the mines, dispatching Demolisher response squad. 01098_ C-30 ARC bursts open, deploying its payload. 01098_ D-53 Grenadier unfolds itself. 01098_ K-01 Serf destroyed. 01107_ Assault Rifle destroyed. 01107_ R-06 Scavenger collects Lgt. Ion Engine. 01108_ The unstable cave ceiling collapses. 01108_ Crushed by falling debris. Map ----- +----------------------------------------------------+ | ?????????????????????????????????????????????????? | | ?????????????????????????????????????????????????? | | ?????????????????????????????????????????????????? | | ?????????????????????????????????????????????????? | | ?????????????????????????????????????????????????? | | ?????????????????????????????????????????????????? | | ?????????????????????????????????????????????????? | | ?????????????????????????????????????????????????? | | ?????????????????????????????????????????????????? | | ?????????????????????????????????????????????????? | | ?????????????????????????????????????????????????? | | ?????????????????????????????????????????????????? | | ?????????????????????????????????????????????????? | | ?????????????????????????????????????????????????? | | ?????????????????????????????????????????????????? | | ?????????????????????????????????????????????????? | | ?????????????????????????????????????????????????? | | ????????????????????########?????????????????????? | | ????????????????????# # # ##????????????????????? | | ??????????????????### #####????????????????? | | ??????????????????# g dd "%" ??????????? | | ??????????????????# # ####?????????????????? | | ??????????????????# r l #???????????????????? | | ?????????????###### # ###??????????????????? | | ?????????????# g #??????????????????? | | ?????????????# ""t @ ##??????????????????? | | ?????????????# """ #???????????????????? | | ?????????????# """ #####???????????????????? | | ?????????????# r #???????????????????????? | | ?????????????# k%k #?######????????????????? | | ?????????????######### ##### ##???????????????? | | ?????????????????????# #### ##??????????????? | | ?????????????????????# % ##?????????????? | | ?????????????????????#### ## #?????????????? | | ????????????????######### ### ##????????????? | | ????????? $ $ #?# #????????????? | | ????????????????###########?# #????????????? | | ????????????????????????????# ##????????????? | | ????????????????????????????## ##?????????????? | | ??????????????????????????????#####??????????????? | | ?????????????????????????????????????????????????? | | ?????????????????????????????????????????????????? | | ?????????????????????????????????????????????????? | | ?????????????????????????????????????????????????? | | ?????????????????????????????????????????????????? | | ?????????????????????????????????????????????????? | | ?????????????????????????????????????????????????? | | ?????????????????????????????????????????????????? | | ?????????????????????????????????????????????????? | | ?????????????????????????????????????????????????? | +----------------------------------------------------+ Best States ------------- Heat Dissipation 39 Energy Generation 10 Energy Capacity 250 Matter Stores 300 Matter Capacity 300 Sight Range 16 Terrain Scan Density 10 Evasion (%) 40 Item Schematics ----------------- None Robot Schematics ------------------ None Fabricated ------------ Nothing Alien Tech Used ----------------- None Achievements -------------- None Challenges ------------ None Game ------ Seed DataAbsorptionTearclaws Manual? 0 Play Time 00:12:04 Cumulative 8.9 hours Start 2020.11.04 @ 18:46:34 End 2020.11.04 @ 18:58:46 Sessions 1 Manual Loads 0 Difficulty Rogue Special Mode Halloween2020/ForbiddenLore Game No. 16 Rogue 16 Adventurer 0 Explorer 0 Win Type - Total 0 Types 0/0/0/0/0/0/0/0/0 Lore% 13 Gallery% 21 Achievement% 16 Wizard Run 0 Options --------- ASCII 0 Keyboard 1 Movement Numpad Keybinds 0 Fullscreen 1 Font 24/Proggy Map View 76x50 Tactical HUD 1 Map Filters NONE Filters NONE Steam 1 RUN: 3a7d1779-0271-4dac-bc34-4b1bdd5c72d9